Workbook

Sheet Custo por trabalhador
A1: PLANILHA DE CUSTOS E FORMAÇÃO DE PREÇOS
A2: MODELO DE FORMAÇÃO DE CUSTO MENSAL PARA UM EMPREGADO
A3: * A planilha de custos e formação de preços é ferramenta de apoio à realização de estimativas da contratação e para a análise das propostas na fase de pregão e nas prorrogações contratuais. * O modelo disponibilizado na Instrução Normativa n° 5, de 26 de maio de 2017, é inspiracional, devendo ser adaptado pelo órgão ou entidade contratante às suas necessidades. * A presente proposta visa, tão somente, auxiliar aos órgão que não possuam um modelo definido na formatação dos cálculos de direitos trabalhistas para estimativas de contratos de prestação de serviços, observando as disposições da Consolidação das Leis do Trabalho - CLT e das Convenções Coletivas de Trabalho - CCT (sendo válidos, ainda, os acordos e dissídios coletivos). * É responsábilidade do usuário que optar pela utilização deste modelo a conferência das fórmulas automatizadas em conformidade com as dispoções de CLT e CCT, para minimizar o risco de equívocos no cômputo das previsões financeiras. * Dúvidas sobre a metodologia de cálculo poderão ser esclarecidas com a leitura dos Cadernos Técnicos de divulgação de valores limites em: https://www.comprasgovernamentais.gov.br/index.php/cadernos-tecnicos-e-valores-limites.
A5: MÓDULO 1 - REMUNERAÇÃO
A6: * A remuneração é definida no art. 457 da Consolidação das Leis do Trabalho. * É composta por Salário Base, Adicionais (noturno, de insalubridade ou periculosidade) e gratificações, quando houver.
A8: SALÁRIO BASE
A9: * O Salário Base vem definido na Convenção Coletiva de Trabalho da categoria profissional a ser contratada para o objeto da prestação de serviço. * O contratante deverá observar se a CCT abrange o município de prestação de serviço e se está vigente.
A11: SALÁRIO BASE
A12: Motorista | B12: 2046.18
A15: GRATIFICAÇÃO DE FUNÇÃO
A16: * Gratificação de função, quando houver, virá informada na Convenção Coletiva de Trabalho da categoria profissional a ser contratada. * O órgão contrantante deverá observar, além da existência de gratificação, se esta incidirá sobre os adicionais, devendo adaptar a planilha ao caso em concreto. * Para o presente modelo foi considerada gratificação como percentual sobre o salário base e sem incidência sobre os adicionais (noturno, periculosidade ou insalubridade).
A18: GRATIFICAÇÃO DE FUNÇÃO
A19: Categoria | B19: Base de cálculo | C19: Percentual | D19: Valor da Gratificação
A20: Motorista 01 | B20: =B12 -> 2046.18 | D20: =B20*C20 -> 0
B21: =B13 -> 0 | D21: =B21*C21 -> 0
A23: ADICIONAIS (periculosidade ou insalubridade, se houver)
A24: * Os adicionais de periculosidade ou insalubridade, em conformidade com os art. 192 e 193 da CLT, dependem da natureza do serviço a ser prestado. * O órgão contrantante deverá observar, além da existência de previsão em CLT, se há informações na Convenção Coletiva de Trabalho acerca dos adicionais, bem como seu percentual e a base de cálculo, devendo adaptar a planilha ao caso em concreto.
A26: ADICIONAL DE PERICULOSIDADE
A27: Categoria | B27: Base de cálculo | C27: Percentual | D27: Valor
A28: Motorista 01 | B28: =B20 -> 2046.18 | D28: =B28*C28 -> 0
A29: - | C29: =C28 -> 0 | D29: 0
A30: - | C30: =C29 -> 0 | D30: 0
B31: =B21 -> 0 | D31: 0
A32: - | D32: 0
A33: - | D33: 0
A36: ADICIONAL NOTURNO
A37: * O Adicional Noturno e a Hora Noturna Reduzida, conforme art. 73 da CLT, serão pagos entre 22h e 5h do dia seguinte, sem prorrogação quando da jornada 12x36h. * O órgão contrantante deverá observar, além da existência do previsto em CLT, se há informações na Convenção Coletiva de Trabalho acerca da existência do percentual de adicional noturno, bem como se haverá pagamento de hora noturna reduzida e adaptar a planilha ao caso em concreto.
A39: ADICIONAL NOTURNO
A40: Categoria | B40: Base de Cálculo | C40: Proporção | D40: Percentual | E40: Valor
A41: Motorista (40h semanais) | B41: =B12+D29 -> 2046.18 | C41: =7/12 -> 0.5833333333 | D41: 0 | E41: =B41*C41*D41 -> 0
B42: =B13+D32 -> 0 | D42: =D41 -> 0 | E42: =B42*C42*D42 -> 0
A43: HORA NOTURNA REDUZIDA
A44: Categoria | B44: Base de Cálculo | C44: Proporção | D44: Percentual | E44: Valor
C45: =1/12 -> 0.08333333333 | D45: 0 | E45: =B45*C45*D45 -> 0
B46: =B13+D32 -> 0 | D46: 0 | E46: =B46*C46*D46 -> 0
A48: ADICIONAL POR TRABALHO NOTURNO
A49: Categoria | B49: Adicional Noturno | C49: Hora Noturna Reduzida | D49: Valor
A50: Motorista (40h semanais) | B50: =E41 -> 0 | C50: =E45 -> 0 | D50: =SUM(B50:C50) -> 0
B51: =E42 -> 0 | C51: =E46 -> 0 | D51: =SUM(B51:C51) -> 0
A53: ADICIONAL XXX
A54: * Em caso de previsão de outros adicionais em Convenção Coletiva de Trabalho o órgão poderá utilizar este campo.
A56: ADICIONAL DIÁRIAS
A57: Categoria | B57: Valor Diária | C57: Quantidade de Dias | D57: Valor
A58: Motorista (40h semanais) | C58: 0 | D58: =B58*C58 -> 0
A59: -
A60: -
C61: 0 | D61: =B61*C61 -> 0
A62: -
A63: -
A65: MÓDULO 1 - REMUNERAÇÃO
A66: Este quadro totaliza a remuneração devida ao trabalhador, conforme previsão da Consolidação das Leis do Trabalho e valores disponíveis na Convenção Coletiva para a categoria
A68: MÓDULO 1 - REMUNERAÇÃO
A69: Categoria | B69: Salário Base | C69: Gratificação de função | D69: Adicional de Periculosidade ou Insalubridade | E69: Adicional Noturno | F69: Adicional XXX | G69: Total
A70: Motorista (40h semanais) | B70: =B12 -> 2046.18 | C70: =D20 -> 0 | D70: =D28 -> 0 | F70: =D58 -> 0 | G70: =SUM(B70:F70) -> 2046.18
A71: - | D71: 0 | F71: =D59 -> 0 | G71: =SUM(B71:F71) -> 0
A72: - | D72: 0 | F72: 0 | G72: 0
B73: =B13 -> 0 | C73: =D21 -> 0 | D73: 0 | F73: 0 | G73: 0
A74: - | D74: 0 | F74: 0 | G74: 0
A75: - | D75: 0 | F75: 0 | G75: 0
A77: MÓDULO 2 - ENCARGOS E BENEFÍCIOS (ANUAIS, MENSAIS E DIÁRIOS)
A79: SUBMÓDULO 2.1 – 13° SALÁRIO, FÉRIAS E ADICIONAL DE FÉRIAS
A81: 13° SALÁRIO Previsto no Decreto 57.155, de 1965.
A82: Categoria | B82: Base de cálculo | C82: Provisionamento Mensal | D82: Valor
A83: Motorista (40h semanais) | B83: =G70 -> 2046.18 | C83: =1/12 -> 0.08333333333 | D83: =B83*C83 -> 170.515
A84: - | D84: =B84*C84 -> 0
A85: - | D85: 0
B86: =G73 -> 0 | C86: =1/12 -> 0.08333333333 | D86: 0
A87: - | D87: 0
A88: - | D88: 0
A90: FÉRIAS Previsto no art. 7° da Constituição Federal
A91: Categoria | B91: Base de cálculo | C91: Provisionamento Mensal | D91: Valor
A92: Motorista (40h semanais) | B92: =G70 -> 2046.18 | C92: =1/12 -> 0.08333333333 | D92: =B92*C92 -> 170.515
A93: - | D93: =B93*C93 -> 0
A94: - | D94: 0
B95: =G73 -> 0 | D95: 0
A96: - | D96: 0
A97: - | D97: 0
A99: ADICIONAL DE FÉRIAS - 1/3 CONSTITUCIONAL
A100: Categoria | B100: Base de cálculo | C100: Alíquota Adicional | D100: Provisionamento Mensal | E100: Valor
A101: Motorista (40h semanais) | B101: =G70 -> 2046.18 | C101: =1/3 -> 0.3333333333 | D101: =1/12 -> 0.08333333333 | E101: =B101*C101*D101 -> 56.83833333
A102: - | E102: 0
A103: - | E103: 0
B104: =G73 -> 0 | E104: 0
A105: - | E105: 0
A106: - | E106: 0
A108: SUBMÓDULO 2.1 – 13° SALÁRIO, FÉRIAS E ADICIONAL DE FÉRIAS
A109: Categoria | B109: 13° Salário | C109: Férias | D109: 1/3 Constitucional | E109: Total
A110: Motorista (40h semanais) | B110: =D83 -> 170.515 | C110: =D92 -> 170.515 | D110: =E101 -> 56.83833333 | E110: =SUM(B110:D110) -> 397.8683333
A111: - | B111: 0 | C111: 0 | D111: 0 | E111: 0
A112: - | B112: 0 | C112: 0 | D112: 0 | E112: 0
B113: 0 | C113: 0 | D113: 0 | E113: 0
A114: - | B114: 0 | C114: 0 | D114: 0 | E114: 0
A115: - | B115: 0 | C115: 0 | D115: 0 | E115: 0
A117: SUBMÓDULO 2.2 - ENCARGOS PREVIDENCIÁRIOS E FGTS
A118: * Previsto no art. 195 da Constituição Federal. * Os percentuais informados não são taxativos e deverão observar o enquadramento real das empresas prestadoras de serviço, em especial no que diz respeito ao SAT-GIIL/RAT.
A120: COMPOSIÇÃO DO GPS E FGTS
A121: Encargos | B121: Percentual
A122: INSS - empregador | B122: 0.2
A123: Salário-Educação | B123: 0.025
A124: SAT- GIL/RAT | B124: 0.02
A125: SESC | B125: 0.015
A126: SENAC | B126: 0.01
A127: SEBRAE | B127: 0.006
A128: INCRA | B128: 0.002
A129: FGTS | B129: 0.08
A130: TOTAL | B130: =SUM(B122:B129) -> 0.358
A132: GPS - GUIA DA PREVIDÊNCIA SOCIAL
A133: Categoria | B133: Base de cálculo | C133: Percentual | D133: Valor
A134: Motorista (40h semanais) | B134: =G70+E110 -> 2444.048333 | C134: =SUM($B$122:$B$128) -> 0.278 | D134: =B134*C134 -> 679.4454367
A135: - | D135: =B135*C135 -> 0
A136: - | D136: 0
B137: =G73+E113 -> 0 | D137: 0
A138: - | D138: 0
A139: - | D139: 0
A141: FGTS - FUNDO DE GARANTIA POR TEMPO DE SERVIÇO
A142: Categoria | B142: Base de cálculo | C142: Percentual | D142: Valor
A143: Motorista (40h semanais) | B143: =G70+E110 -> 2444.048333 | C143: =$B$129 -> 0.08 | D143: =B143*C143 -> 195.5238667
A144: - | B144: 0 | D144: =B144*C144 -> 0
A145: - | B145: 0 | D145: 0
B146: 0 | D146: 0
A147: - | B147: 0 | D147: 0
A148: - | B148: 0 | D148: 0
A150: SUBMÓDULO 2.2 - ENCARGOS PREVIDENCIÁRIOS E FGTS
A151: Categoria | B151: GPS | C151: FGTS | D151: Total
A152: Motorista (40h semanais) | B152: =D134 -> 679.4454367 | C152: =D143 -> 195.5238667 | D152: =B152+C152 -> 874.9693033
A153: - | B153: =D135 -> 0 | C153: =D144 -> 0 | D153: =B153+C153 -> 0
A154: - | B154: 0 | C154: 0 | D154: 0
B155: 0 | C155: 0 | D155: 0
A156: - | B156: 0 | C156: 0 | D156: 0
A157: - | B157: 0 | C157: 0 | D157: 0
A159: SUBMÓDULO 2.3 - BENEFÍCIOS MENSAIS E DIÁRIOS
A160: * O cálculo de benefícios mensais e diários dependerá das disposições constantes em Convenção Coletiva de Trabalho sobre os direitos negociados aos trabalhadores, observando sempre o custo efetivo a ser suportado pela Administração no contrato de prestação de serviços (descontados os valores arcados pelos empregados).
A162: VALE TRANSPORTE
A163: CUSTO DA PASSAGEM
A164: Categoria | B164: Vr. Unitário | C164: Vales por dia | D164: Dias efetivamente trabalhados | E164: Custo total
A165: Motorista (40h semanais) | B165: 3.85 | C165: 2 | D165: 22 | E165: =B165*C165*D165 -> 169.4
A166: - | E166: 0
A167: - | E167: 0
E168: 0
A169: - | E169: 0
A170: - | E170: 0
A172: DESCONTO DO VALE TRANSPORTE
A173: Categoria | B173: Base de cálculo | C173: Proporcionalidade | D173: Percentual | E173: Desconto
A174: Motorista (40h semanais) | B174: =B12 -> 2046.18 | C174: 0.5 | D174: 0.06 | E174: =B174*C174*D174 -> 61.3854
A175: - | E175: 0
A176: - | E176: 0
B177: =B13 -> 0 | E177: 0
A178: - | E178: 0
A179: - | E179: 0
A181: CUSTO EFETIVO DO VALE TRANSPORTE
A182: Categoria | B182: Custo total | C182: Valor do desconto | D182: Custo efetivo
A183: Motorista (40h semanais) | B183: =E165 -> 169.4 | C183: =E174 -> 61.3854 | D183: =B183-C183 -> 108.0146
A184: - | B184: 0 | C184: 0 | D184: =B184-C184 -> 0
A185: - | B185: 0 | C185: 0 | D185: 0
B186: 0 | C186: 0 | D186: 0
A187: - | B187: 0 | C187: 0 | D187: 0
A188: - | B188: 0 | C188: 0 | D188: 0
A190: VALE ALIMENTAÇÃO/REFEIÇÃO
A191: VALE ALIMENTAÇÃO/REFEIÇÃO
A192: Categoria | B192: Valor diário | C192: Dias efetivamente trabalhados | D192: Valor
A193: Motorista (40h semanais) | B193: 16 | C193: 22 | D193: =B193*C193 -> 352
A194: - | C194: =D166 -> 0 | D194: =B194*C194 -> 0
A195: - | C195: =D167 -> 0 | D195: 0
D196: 0
A197: - | C197: =D169 -> 0 | D197: 0
A198: - | C198: =D170 -> 0 | D198: 0
A200: DESCONTO DO VALE ALIMENTAÇÃO/REFEIÇÃO
A201: Categoria | B201: Base de cálculo | C201: Percentual | D201: Desconto
A202: Motorista (40h semanais) | B202: =D193 -> 352 | C202: 0.01 | D202: =B202*C202 -> 3.52
A203: - | B203: =D194 -> 0 | C203: =C202 -> 0.01 | D203: =B203*C203 -> 0
A204: - | B204: 0 | C204: =C203 -> 0.01 | D204: 0
B205: 0 | C205: =C204 -> 0.01 | D205: 0
A206: - | B206: 0 | C206: =C205 -> 0.01 | D206: 0
A207: - | B207: 0 | C207: =C206 -> 0.01 | D207: 0
A209: CUSTO EFETIVO DO VALE ALIMENTAÇÃO/REFEIÇÃO
A210: Categoria | B210: Custo total | C210: Desconto | D210: Custo efetivo
A211: Motorista (40h semanais) | B211: =D193 -> 352 | C211: =D202 -> 3.52 | D211: =B211-C211 -> 348.48
A212: - | B212: =D194 -> 0 | C212: =D203 -> 0 | D212: =B212-C212 -> 0
A213: - | B213: 0 | C213: 0 | D213: 0
B214: 0 | C214: 0 | D214: 0
A215: - | B215: 0 | C215: 0 | D215: 0
A216: - | B216: 0 | C216: 0 | D216: 0
A218: BENEFÍCIO XXX Utilizar este campo em caso de outros benefícios previstos em Convenção Coletiva, sempre especificando o tipo, finalidade e previsão legal do mesmo.
A220: BENEFÍCIO xxx
A221: Categoria
A222: Motorista (40h semanais)
A223: -
A224: -
A226: -
A227: -
A229: BENEFÍCIO YYY Utilizar este campo em caso de outros benefícios previstos em Convenção Coletiva, sempre especificando o tipo, finalidade e previsão legal do mesmo.
A231: BENEFÍCIO yyy
A232: Categoria
A233: Motorista (40h semanais)
A234: -
A235: -
A237: -
A238: -
A239: SUBMÓDULO 2.3 - BENEFÍCIOS MENSAIS E DIÁRIOS
A240: Categoria | B240: Vale Transporte | C240: Vale Refeição | D240: Benefício x | E240: Benefício y | F240: Total
... 248 more rows
